fUST/lending_fUST_20240414
["ID","MTS","AMOUNT","RATE_DAILY","PERIOD"]
[322574490,1713078638816,-1788.819534,0.00041,34]
[322574491,1713078638825,-1243.0,0.00041065,35]
[322574492,1713078638834,-150.5,0.00041065,35]
[322574493,1713078638843,-1243.0,0.00041075,35]
[322574494,1713078638851,-150.5,0.00041075,35]
[322574495,1713078638861,-1243.0,0.00041085,35]
[322574496,1713078638871,-299.75,0.00041085,35]
[322574497,1713078638879,-150.5,0.00041085,35]
[322574498,1713078638888,-232.22195338,0.00041091,4]
[322574499,1713078638898,-683.37413683,0.00041092,2]
[322574500,1713078638907,-248.21927856,0.00041093,2]
[322574501,1713078638916,-186.77324729,0.00041093,2]
[322574502,1713078638925,-953.28313122,0.00041093,4]
[322574503,1713078638934,-703.53158695,0.00041093,4]
[322574595,1713078646361,-891.34039226,0.00041092,4]
[322574596,1713078646370,-5085.30219696,0.00041093,4]
[322574597,1713078646380,-2582.43415797,0.00041093,4]
[322574598,1713078646389,-875.68861657,0.00041093,4]
[322574599,1713078646398,-1932.371615,0.00041093,4]
[322574600,1713078646409,-281.86446693,0.00041093,4]
[322574601,1713078646418,-156.35570532,0.00041093,4]
[322574602,1713078646427,-500.0,0.00041093,2]
[322574603,1713078646436,-157.59249383,0.00041093,4]
[322574604,1713078646445,-2562.0143999,0.00041094,4]
[322574606,1713078665211,3459.44942147,0.00027,60]
[322574607,1713078673509,160.667841,0.00027397,2]
[322574622,1713078972539,2546.49860989,0.00042724,30]
[322574630,1713079643426,166.375026,0.00027397,2]
[322574649,1713079832465,-155.91156021,0.0003741,2]
[322574650,1713079832475,-2500.0,0.000375,14]
[322574651,1713079832486,-607.18222481,0.0003751,14]
[322574652,1713079832498,-1892.81777519,0.0003751,14]
[322574653,1713079832509,-3000.0,0.0003752,14]
[322574654,1713079832518,-160.667841,0.00038356,2]
[322574655,1713079832528,-400.0,0.00038936,3]
[322574656,1713079832540,-300.0,0.00038936,5]
[322574657,1713079832550,-3519.00317763,0.00038937,4]
[322574658,1713079832559,-287.78611353,0.00039038,4]
[322574659,1713079832571,-1331.1164,0.00039085,30]
[322574660,1713079832580,-213.526048,0.00039391,2]
[322574661,1713079832590,-682.712326,0.00039463,120]
[322574662,1713079832600,-1407.60638131,0.0004,4]
[322574663,1713079832610,-150.0,0.00040624,2]
[322574664,1713079832619,-157.07652659,0.00040684,2]
[322574665,1713079832629,-237.2136,0.0004089,2]
[322574666,1713079832639,-164.21793047,0.00040995,2]
[322574667,1713079832648,-3566.46692045,0.00040995,2]
[322574668,1713079832658,-2000.0,0.00040995,2]
[322574669,1713079832668,-29118.30188027,0.00040995,2]
[322574670,1713079832678,-5000.0,0.00041,2]
[322574671,1713079832688,-2151.20020765,0.00041,30]
[322574672,1713079832698,-10046.34551693,0.00041,2]
[322574673,1713079832708,-8144.96473121,0.00041052,15]
[322574674,1713079832717,-1243.0,0.00041065,35]
[322574675,1713079832727,-1243.0,0.00041075,35]
[322574676,1713079832736,-1243.0,0.00041085,35]
[322574677,1713079832745,-299.75,0.00041085,35]
[322574678,1713079832755,-285.12073066,0.00041093,4]
[322574679,1713079832764,-2013.55409735,0.00041093,4]
[322574680,1713079832774,-273.04379631,0.00041093,2]
[322574681,1713079832784,-2045.13777758,0.00041093,2]
[322574682,1713079832794,-465.26500893,0.00041093,4]
[322574683,1713079832803,-703.53158695,0.00041093,4]
[322574684,1713079832813,-248.21927856,0.00041093,2]
[322574685,1713079832823,-232.22195338,0.00041093,4]
[322574686,1713079832833,-683.37413683,0.00041093,2]
[322574687,1713079832842,-953.28313122,0.00041093,4]
[322574688,1713079832852,-186.77324729,0.00041093,2]
[322574689,1713079832862,-547.42031358,0.00041093,4]
[322574690,1713079832871,-299.82752621,0.00041093,4]
[322574691,1713079832881,-94.71780283,0.00041094,4]
[322574745,1713079838373,-620.0,0.00041092,31]
[322574747,1713079838383,-4096.60867879,0.00041094,4]
[322574749,1713079838393,-151.0,0.00041094,2]
[322574751,1713079838405,-155.20094083,0.00041094,20]
[322574753,1713079838414,-276.22880515,0.00041094,2]
[322574755,1713079838424,-457.60581969,0.00041094,31]
[322574757,1713079838433,-196.11677987,0.00041094,31]
[322574759,1713079838442,-427.85258806,0.00041094,31]
[322574760,1713079838452,-18101.9588043,0.00041095,5]
[322574762,1713079838461,-500.0,0.00041095,7]
[322574763,1713079838470,-500.0,0.00041095,7]
[322574765,1713079838480,-500.0,0.00041095,7]
[322574767,1713079838491,-500.0,0.00041095,7]
[322574769,1713079838501,-500.0,0.00041095,7]
[322574771,1713079838510,-500.0,0.00041095,7]
[322574773,1713079838519,-500.0,0.00041095,7]
[322574775,1713079838528,-500.0,0.00041095,7]
[322574777,1713079838537,-500.0,0.00041095,7]
[322574779,1713079838546,-500.0,0.00041095,7]
[322574781,1713079838555,-500.0,0.00041095,7]
[322574783,1713079838564,-583.08273626,0.00041095,7]
[322574785,1713079838573,-164.72271127,0.00041095,7]
[322574974,1713079840492,-335.27728873,0.00041095,7]
[322574976,1713079840503,-500.0,0.00041095,7]
[322574978,1713079840512,-198.42261267,0.00041095,7]
[322574980,1713079840521,-500.0,0.00041095,7]
[322574982,1713079840530,-500.0,0.00041095,7]
[322574984,1713079840545,-500.0,0.00041095,7]
[322574986,1713079840554,-500.0,0.00041095,7]
[322574988,1713079840564,-500.0,0.00041095,7]
[322574990,1713079840573,-265.08083849,0.00041095,7]
[322574992,1713079840582,-500.0,0.00041095,7]
[322574993,1713079840591,-500.0,0.00041095,7]
[322574995,1713079840603,-500.0,0.00041095,7]
[322574997,1713079840613,-500.0,0.00041095,7]
[322574999,1713079840622,-500.0,0.00041095,7]
[322575001,1713079840631,-155.16208166,0.00041095,7]
[322575279,1713079843532,-157.0765266,0.00040684,2]
[322575282,1713079843542,-344.83791834,0.00041095,7]
[322575284,1713079843553,-500.0,0.00041095,7]
[322575286,1713079843562,-353.64029037,0.00041095,7]
[322575288,1713079843572,-500.0,0.00041095,7]
[322575290,1713079843581,-500.0,0.00041095,7]
[322575292,1713079843590,-500.0,0.00041095,7]
[322575295,1713079843599,-500.0,0.00041095,7]
[322575298,1713079843608,-510.97725975,0.00041095,7]
[322575300,1713079843617,-500.0,0.00041095,7]
[322575302,1713079843626,-192.29038729,0.00041095,7]
[322575304,1713079843635,-249.16241964,0.00041095,7]
[322575306,1713079843645,-500.0,0.00041095,7]
[322575308,1713079843654,-500.0,0.00041095,7]
[322575310,1713079843663,-500.0,0.00041095,7]
[322575312,1713079843672,-500.0,0.00041095,7]
[322575314,1713079843681,-500.0,0.00041095,7]
[322575316,1713079843690,-500.0,0.00041095,7]
[322575318,1713079843700,-500.0,0.00041095,7]
[322575320,1713079843708,-296.75936296,0.00041095,7]
[322575323,1713079843725,-203.24063704,0.00041095,7]
[322575325,1713079843734,-500.0,0.00041095,7]
[322575326,1713079843743,-500.0,0.00041095,7]
[322575328,1713079843753,-500.0,0.00041095,7]
[322575331,1713079843762,-500.0,0.00041095,7]
[322575332,1713079843772,-113.41120296,0.00041095,7]
[322576041,1713080607066,162.673665,0.00027397,2]
[322576054,1713081029362,283.32212977,0.00025297,2]
[322576055,1713081029549,283.32212977,0.00030297,2]
[322576069,1713081032397,4966.14068661,0.00027397,14]
[322576070,1713081032557,-48864.47842281,0.00027397,14]
[322576071,1713081032569,-283.32212977,0.00035297,2]
[322576072,1713081032579,-500.0,0.00036337,2]
[322576073,1713081032588,-1218.19988435,0.00036338,4]
[322576074,1713081032597,-512.034244,0.00036339,120]
[322576075,1713081032607,-400.0,0.00036518,2]
[322576076,1713081032616,-400.0,0.00036518,2]
[322576077,1713081032625,-10622.93498748,0.00036519,5]
[322576078,1713081032635,-162.673665,0.0003653,2]
[322576079,1713081032645,-305.17544274,0.00037399,7]
[322576080,1713081032654,-2500.0,0.000375,14]
[322576081,1713081032663,-2500.0,0.0003751,14]
[322576082,1713081032673,-2500.0,0.0003752,14]
[322576083,1713081032683,-2500.0,0.0003753,14]
[322576084,1713081032692,-2500.0,0.0003754,14]
[322576085,1713081032701,-2500.0,0.0003755,14]
[322576086,1713081032710,-2500.0,0.0003756,14]
[322576087,1713081032720,-2500.0,0.0003757,14]
[322576088,1713081032729,-200.0,0.00039093,5]
[322576089,1713081032739,-1407.60638131,0.0004,4]
[322576090,1713081032748,-150.0,0.00040094,2]
[322576091,1713081032758,-560.0,0.00040169,3]
[322576092,1713081032773,-201.67162124,0.00040641,2]
[322576093,1713081032787,-157.0765266,0.00040684,2]
[322576094,1713081032796,-1253.86325688,0.00040995,2]
[322576095,1713081032806,-2000.0,0.00040995,2]
[322576096,1713081032816,-870.0,0.00041065,35]
[322576097,1713081032827,-150.5,0.00041065,35]
[322576098,1713081032836,-870.0,0.00041075,35]
[322576099,1713081032845,-150.5,0.00041075,35]
[322576100,1713081032856,-870.0,0.00041085,35]
[322576101,1713081032866,-150.5,0.00041085,35]
[322576102,1713081032876,-7119.59117648,0.00041092,7]
[322576103,1713081032885,-237.06998667,0.00041093,4]
[322576104,1713081032895,-702.6039036,0.00041093,4]
[322576105,1713081032905,-4370.48789877,0.00041094,4]
[322576106,1713081032915,-278.21810736,0.00041094,4]
[322576107,1713081032924,-201.58165915,0.00041094,31]
[322576108,1713081032934,-256.43642088,0.00041094,31]
[322576109,1713081032944,-390.68685366,0.00041094,31]
[322576110,1713081032953,-167.437223,0.00041094,31]
[322576111,1713081032963,-156.67886211,0.00041094,31]
[322576112,1713081032972,-459.53504343,0.00041094,31]
[322576113,1713081032982,-365.58401159,0.00041094,31]
[322576114,1713081032991,-150.0,0.00041094,2]
[322576115,1713081033001,-23138.93524054,0.00041095,5]
[322576166,1713081038553,-157.0765266,0.00040684,2]
[322576168,1713081038563,-2855.7258935,0.00041095,5]
[322576303,1713081039935,-4785.26262315,0.00041095,5]
[322576361,1713081040706,-3873.01444926,0.00041095,5]
[322576363,1713081040715,-500.0,0.00041095,7]
[322576365,1713081040724,-500.0,0.00041095,7]
[322576367,1713081040733,-502.81809655,0.00041095,7]
[322576369,1713081040742,-506.84550622,0.00041095,7]
[322576371,1713081040751,-624.95533883,0.00041095,7]
[322576373,1713081040761,-500.0,0.00041095,7]
[322576375,1713081040770,-385.05816085,0.00041095,7]
[322576377,1713081040782,-500.0,0.00041095,7]
[322576379,1713081040791,-500.0,0.00041095,7]
[322576381,1713081040803,-500.0,0.00041095,7]
[322576383,1713081040813,-500.0,0.00041095,7]
[322576385,1713081040826,-345.8592173,0.00041095,7]
[322576387,1713081040835,-500.0,0.00041095,7]
[322576389,1713081040844,-587.70649651,0.00041095,7]
[322576391,1713081040853,-500.0,0.00041095,7]
[322576393,1713081040864,-500.0,0.00041095,7]
[322576395,1713081040875,-500.0,0.00041095,7]
[322576397,1713081040887,-500.0,0.00041095,7]
[322576399,1713081040898,-216.37622542,0.00041095,7]
[322576684,1713081043662,-500.0,0.00041095,7]
[322576685,1713081043672,-500.0,0.00041095,7]
[322576687,1713081043681,-500.0,0.00041095,7]
[322576688,1713081043690,-500.0,0.00041095,7]
[322576690,1713081043699,-500.0,0.00041095,7]
[322576692,1713081043708,-500.0,0.00041095,7]
[322576694,1713081043716,-500.0,0.00041095,7]
[322576695,1713081043725,-500.0,0.00041095,7]
[322576696,1713081043735,-217.46734451,0.00041095,7]
[322576697,1713081043744,-711.2,0.00041095,7]
[322576698,1713081043754,-711.2,0.00041095,7]
[322576699,1713081043763,-711.2,0.00041095,7]
[322576700,1713081043773,-711.2,0.00041095,7]
[322576702,1713081043783,-711.2,0.00041095,7]
[322576704,1713081043791,-711.2,0.00041095,7]
[322576705,1713081043801,-711.2,0.00041095,7]
[322576707,1713081043812,-711.2,0.00041095,7]
[322576708,1713081043822,-711.2,0.00041095,7]
[322576709,1713081043832,-711.2,0.00041095,7]
[322576710,1713081043841,-711.2,0.00041095,7]
[322576712,1713081043850,-711.2,0.00041095,7]
[322576713,1713081043859,-711.2,0.00041095,7]
[322576714,1713081043867,-711.2,0.00041095,7]
[322576715,1713081043877,-711.2,0.00041095,7]
[322576716,1713081043886,-500.0,0.00041095,7]
[322576717,1713081043896,-710.78265549,0.00041095,7]
[322576718,1713081043914,-0.41734451,0.00041095,7]
[322576719,1713081043923,-500.0,0.00041095,7]
[322576720,1713081043932,-500.0,0.00041095,7]
[322576721,1713081043941,-711.2,0.00041095,7]
[322576722,1713081043950,-500.0,0.00041095,7]
[322576723,1713081043959,-711.2,0.00041095,7]
[322576724,1713081043968,-500.0,0.00041095,7]
[322576737,1713081044106,-711.2,0.00041095,7]
[322576739,1713081044116,-500.0,0.00041095,7]
[322576741,1713081044125,-711.2,0.00041095,7]
[322576743,1713081044135,-500.0,0.00041095,7]
[322576745,1713081044143,-500.0,0.00041095,7]
[322576747,1713081044152,-500.0,0.00041095,7]
[322576749,1713081044161,-711.2,0.00041095,7]
[322576750,1713081044170,-622.62751481,0.00041095,7]
[322576753,1713081044179,-711.2,0.00041095,7]
[322576754,1713081044189,-711.2,0.00041095,7]
[322576756,1713081044200,-711.25830977,0.00041095,7]
[322576758,1713081044209,-500.0,0.00041095,7]
[322576760,1713081044218,-500.0,0.00041095,7]
[322576762,1713081044229,-630.70824198,0.00041095,7]
[322576765,1713081044238,-500.0,0.00041095,7]
[322576766,1713081044247,-158.36933211,0.00041095,120]
[322576768,1713081044257,-500.0,0.00041095,7]
[322576770,1713081044266,-500.96540924,0.00041095,7]
[322576772,1713081044276,-500.0,0.00041095,7]
[322576774,1713081044285,-500.0,0.00041095,7]
[322576776,1713081044294,-500.0,0.00041095,7]
[322576778,1713081044303,-500.0,0.00041095,7]
[322576780,1713081044312,-500.0,0.00041095,7]
[322576782,1713081044321,-500.0,0.00041095,7]
[322576784,1713081044332,-500.0,0.00041095,7]
[322576786,1713081044341,-500.0,0.00041095,7]
[322576788,1713081044350,-500.0,0.00041095,7]
[322576790,1713081044359,-500.0,0.00041095,7]
[322576792,1713081044369,-500.0,0.00041095,7]
[322576794,1713081044378,-500.0,0.00041095,7]
[322576796,1713081044387,-500.0,0.00041095,7]
[322576798,1713081044396,-500.0,0.00041095,7]
[322576800,1713081044405,-500.0,0.00041095,7]
[322576802,1713081044414,-500.0,0.00041095,7]
[322576804,1713081044423,-500.0,0.00041095,7]
[322576806,1713081044432,-504.63413785,0.00041095,7]
[322576808,1713081044442,-361.1603774,0.00041095,2]
[322576810,1713081044450,-500.0,0.00041095,7]
[322576812,1713081044459,-501.92851274,0.00041095,7]
[322576814,1713081044468,-151.0,0.00041095,2]
[322576816,1713081044478,-151.0,0.00041095,2]
[322576817,1713081044487,-500.0,0.00041095,7]
[322576819,1713081044496,-500.0,0.00041095,7]
[322576821,1713081044505,-500.0,0.00041095,7]
[322576823,1713081044514,-500.0,0.00041095,7]
[322576825,1713081044523,-500.0,0.00041095,7]
[322576827,1713081044535,-500.0,0.00041095,7]
[322576829,1713081044545,-500.0,0.00041095,7]
[322576831,1713081044554,-500.0,0.00041095,7]
[322576833,1713081044563,-500.0,0.00041095,7]
[322576835,1713081044573,-317.73048967,0.00041095,7]
[322576837,1713081044585,-500.0,0.00041095,7]
[322576839,1713081044594,-500.0,0.00041095,7]
[322576841,1713081044603,-500.0,0.00041095,7]
[322576843,1713081044613,-269.72807557,0.00041095,7]
[322576844,1713081044622,-500.0,0.00041095,7]
[322576845,1713081044631,-443.42194427,0.00041095,7]
[322576846,1713081044641,-500.0,0.00041095,7]
[322576847,1713081044651,-500.0,0.00041095,7]
[322576848,1713081044661,-500.0,0.00041095,7]
[322576849,1713081044670,-500.0,0.00041095,7]
[322576850,1713081044680,-500.0,0.00041095,7]
[322576851,1713081044689,-500.0,0.00041095,7]
[322576852,1713081044699,-500.0,0.00041095,7]
[322576853,1713081044709,-500.0,0.00041095,7]
[322576854,1713081044719,-500.0,0.00041095,7]
[322576855,1713081044728,-500.0,0.00041095,7]
[322576856,1713081044737,-500.0,0.00041095,7]
[322576857,1713081044746,-500.0,0.00041095,7]
[322576858,1713081044755,-500.0,0.00041095,7]
[322576859,1713081044764,-500.0,0.00041095,7]
[322576860,1713081044774,-500.0,0.00041095,7]
[322576861,1713081044787,-500.0,0.00041095,7]
[322576862,1713081044796,-500.0,0.00041095,7]
[322576863,1713081044806,-500.0,0.00041095,7]
[322576864,1713081044815,-627.49873061,0.00041095,7]
[322576865,1713081044827,-500.0,0.00041095,7]
[322576866,1713081044837,-500.0,0.00041095,7]
[322576867,1713081044846,-500.0,0.00041095,7]
[322576868,1713081044855,-500.0,0.00041095,7]
[322576869,1713081044865,-500.0,0.00041095,7]
[322576870,1713081044874,-500.0,0.00041095,7]
[322576871,1713081044883,-500.0,0.00041095,7]
[322576872,1713081044892,-500.0,0.00041095,7]
[322576873,1713081044902,-500.0,0.00041095,7]
[322576874,1713081044911,-578.53562754,0.00041095,7]
[322576875,1713081044921,-500.0,0.00041095,7]
[322576876,1713081044931,-500.0,0.00041095,7]
[322576877,1713081044942,-500.0,0.00041095,7]
[322576878,1713081044951,-500.0,0.00041095,7]
[322576879,1713081044960,-500.0,0.00041095,7]
[322576880,1713081044970,-500.0,0.00041095,7]
[322576881,1713081044979,-500.0,0.00041095,7]
[322576882,1713081044989,-500.0,0.00041095,7]
[322576883,1713081044998,-500.0,0.00041095,7]
[322576884,1713081045008,-500.0,0.00041095,7]
[322576885,1713081045018,-500.0,0.00041095,7]
[322576886,1713081045028,-500.0,0.00041095,7]
[322576887,1713081045038,-500.0,0.00041095,7]
[322576888,1713081045047,-500.0,0.00041095,7]
[322576889,1713081045057,-500.0,0.00041095,7]
[322576890,1713081045067,-508.10158357,0.00041095,7]
[322576891,1713081045077,-500.0,0.00041095,7]
[322576892,1713081045086,-314.20127531,0.00041095,7]
[322576893,1713081045095,-562.57582672,0.00041095,7]
[322576894,1713081045104,-507.67965804,0.00041095,7]
[322576895,1713081045113,-500.0,0.00041095,7]
[322576896,1713081045123,-500.0,0.00041095,7]
[322576897,1713081045134,-500.0,0.00041095,7]
[322576898,1713081045144,-500.0,0.00041095,7]
[322576899,1713081045154,-500.0,0.00041095,7]
[322576900,1713081045163,-287.43950815,0.00041095,7]
[322576901,1713081045172,-500.0,0.00041095,7]
[322576902,1713081045181,-500.0,0.00041095,7]
[322576903,1713081045191,-500.0,0.00041095,7]
[322576904,1713081045201,-500.0,0.00041095,7]
[322576905,1713081045210,-500.0,0.00041095,7]
[322576906,1713081045218,-500.0,0.00041095,7]
[322576907,1713081045227,-500.0,0.00041095,7]
[322576908,1713081045237,-500.0,0.00041095,7]
[322576909,1713081045245,-500.0,0.00041095,7]
[322576910,1713081045254,-500.0,0.00041095,7]
[322576911,1713081045263,-500.0,0.00041095,7]
[322576912,1713081045273,-500.0,0.00041095,7]
[322576913,1713081045281,-500.0,0.00041095,7]
[322576914,1713081045290,-500.0,0.00041095,7]
[322576915,1713081045300,-503.52489198,0.00041095,7]
[322576916,1713081045309,-500.0,0.00041095,7]
[322576917,1713081045318,-500.0,0.00041095,7]
[322576918,1713081045327,-500.0,0.00041095,7]
[322576919,1713081045337,-500.0,0.00041095,7]
[322576920,1713081045346,-500.0,0.00041095,7]
[322576921,1713081045355,-500.0,0.00041095,7]
[322576922,1713081045365,-500.0,0.00041095,7]
[322576923,1713081045374,-500.0,0.00041095,7]
[322576924,1713081045383,-500.0,0.00041095,7]
[322576925,1713081045393,-500.0,0.00041095,7]
[322576926,1713081045402,-500.0,0.00041095,7]
[322576927,1713081045411,-461.57580343,0.00041095,7]
[322576928,1713081045420,-503.04509204,0.00041095,7]
[322576929,1713081045429,-507.99465319,0.00041095,7]
[322576930,1713081045439,-500.0,0.00041095,7]
[322576931,1713081045451,-500.0,0.00041095,7]
[322576932,1713081045459,-500.0,0.00041095,7]
[322576933,1713081045469,-500.0,0.00041095,7]
[322576934,1713081045477,-500.0,0.00041095,7]
[322576935,1713081045486,-500.0,0.00041095,7]
[322576936,1713081045495,-409.08,0.00041095,7]
[322576937,1713081045505,-500.0,0.00041095,7]
[322576938,1713081045514,-500.0,0.00041095,7]
[322576939,1713081045523,-404.9060071,0.00041095,7]
[322576940,1713081045532,-507.81918686,0.00041095,7]
[322576941,1713081045541,-500.0,0.00041095,7]
[322576942,1713081045550,-500.0,0.00041095,7]
[322576943,1713081045560,-500.0,0.00041095,7]
[322576944,1713081045569,-500.0,0.00041095,7]
[322576945,1713081045579,-500.0,0.00041095,7]
[322576946,1713081045588,-500.0,0.00041095,7]
[322576947,1713081045598,-500.0,0.00041095,7]
[322576948,1713081045607,-503.46666839,0.00041095,7]
[322576949,1713081045616,-465.79313049,0.00041095,7]
[322576950,1713081045625,-500.0,0.00041095,7]
[322576951,1713081045634,-282.24270913,0.00041095,7]
[322576952,1713081045644,-500.0,0.00041095,7]
[322576953,1713081045653,-502.6067113,0.00041095,7]
[322576954,1713081045662,-500.0,0.00041095,7]
[322576955,1713081045671,-500.0,0.00041095,7]
[322576956,1713081045680,-500.0,0.00041095,7]
[322576957,1713081045689,-522.56774893,0.00041095,7]
[322576958,1713081045698,-506.64861878,0.00041095,7]
[322576959,1713081045707,-310.36254952,0.00041095,7]
[322576960,1713081045716,-503.54699233,0.00041095,7]
[322576961,1713081045725,-502.41307117,0.00041095,7]
[322576962,1713081045733,-503.8295416,0.00041095,7]
[322576963,1713081045742,-500.0,0.00041095,7]
[322576964,1713081045751,-500.0,0.00041095,7]
[322576965,1713081045760,-500.0,0.00041095,7]
[322576966,1713081045769,-500.0,0.00041095,7]
[322576967,1713081045779,-500.0,0.00041095,7]
[322576968,1713081045789,-500.0,0.00041095,7]
[322576969,1713081045798,-500.0,0.00041095,7]
[322576970,1713081045810,-500.0,0.00041095,7]
[322576971,1713081045819,-501.17112086,0.00041095,7]
[322576972,1713081045832,-500.0,0.00041095,7]
[322576973,1713081045841,-500.0,0.00041095,7]
[322576974,1713081045850,-500.0,0.00041095,7]
[322576975,1713081045859,-500.0,0.00041095,7]
[322576976,1713081045869,-500.0,0.00041095,7]
[322576977,1713081045879,-500.0,0.00041095,7]
[322576978,1713081045889,-554.15216175,0.00041095,7]
[322576980,1713081045899,-500.0,0.00041095,7]
[322576982,1713081045908,-500.0,0.00041095,7]
[322576983,1713081045918,-500.0,0.00041095,7]
[322576986,1713081045927,-500.0,0.00041095,7]
[322576988,1713081045937,-500.0,0.00041095,7]
[322576989,1713081045946,-500.0,0.00041095,7]
[322576990,1713081045956,-503.25833463,0.00041095,7]
[322576991,1713081045966,-500.0,0.00041095,7]
[322576992,1713081045976,-500.0,0.00041095,7]
[322576993,1713081045985,-461.05114923,0.00041095,7]
[322576994,1713081045995,-500.0,0.00041095,7]
[322576995,1713081046005,-276.94721428,0.00041095,7]
[322576996,1713081046014,-504.8923807,0.00041095,7]
[322576997,1713081046023,-500.0,0.00041095,7]
[322576999,1713081046032,-500.0,0.00041095,7]
[322577000,1713081046042,-500.0,0.00041095,7]
[322577001,1713081046051,-500.0,0.00041095,7]
[322577002,1713081046060,-500.0,0.00041095,7]
[322577003,1713081046069,-578.11369838,0.00041095,7]
[322577004,1713081046079,-500.0,0.00041095,7]
[322577005,1713081046088,-500.0,0.00041095,7]
[322577006,1713081046097,-500.0,0.00041095,7]
[322577007,1713081046107,-570.6,0.00041095,7]
[322577008,1713081046116,-500.0,0.00041095,7]
[322577009,1713081046127,-166.23042322,0.00041095,7]
[322577010,1713081046137,-570.6,0.00041095,7]
[322577011,1713081046146,-570.6,0.00041095,7]
[322577012,1713081046156,-570.6,0.00041095,7]
[322577013,1713081046166,-570.6,0.00041095,7]
[322577014,1713081046175,-570.6,0.00041095,7]
[322577015,1713081046184,-570.6,0.00041095,7]
[322577016,1713081046194,-570.6,0.00041095,7]
[322577017,1713081046203,-500.0,0.00041095,7]
[322577018,1713081046212,-570.6,0.00041095,7]
[322577019,1713081046221,-570.6,0.00041095,7]
[322577020,1713081046230,-570.6,0.00041095,7]
[322577021,1713081046239,-570.6,0.00041095,7]
[322577022,1713081046248,-570.6,0.00041095,7]
[322577023,1713081046257,-570.6,0.00041095,7]
[322577024,1713081046266,-570.6,0.00041095,7]
[322577025,1713081046275,-570.6,0.00041095,7]
[322577026,1713081046284,-570.6,0.00041095,7]
[322577027,1713081046293,-570.6,0.00041095,7]
[322577028,1713081046303,-570.6,0.00041095,7]
[322577029,1713081046412,-570.6,0.00041095,7]
[322577030,1713081046422,-570.6,0.00041095,7]
[322577031,1713081046431,-570.6,0.00041095,7]
[322577032,1713081046441,-570.6,0.00041095,7]
[322577033,1713081046450,-570.77722562,0.00041095,7]
[322577034,1713081046459,-500.0,0.00041095,7]
[322577035,1713081046468,-500.0,0.00041095,7]
[322577036,1713081046477,-500.0,0.00041095,7]
[322577037,1713081046486,-500.0,0.00041095,7]
[322577038,1713081046496,-642.71424556,0.00041095,7]
[322577039,1713081046505,-242.27631478,0.00041095,7]
[322577040,1713081046514,-504.05411323,0.00041095,7]
[322577041,1713081046523,-351.09086698,0.00041095,7]
[322577042,1713081046532,-500.0,0.00041095,7]
[322577043,1713081046541,-500.0,0.00041095,7]
[322577044,1713081046550,-308.85381881,0.00041095,7]
[322577045,1713081046559,-151.0,0.00041095,7]
[322577046,1713081046568,-151.61068951,0.00041095,7]
[322577047,1713081046579,-500.0,0.00041095,7]
[322577048,1713081046587,-500.0,0.00041095,7]
[322577049,1713081046596,-500.0,0.00041095,7]
[322577050,1713081046605,-500.0,0.00041095,7]
[322577052,1713081046614,-500.0,0.00041095,7]
[322577054,1713081046623,-500.0,0.00041095,7]
[322577056,1713081046631,-500.0,0.00041095,7]
[322577057,1713081046640,-500.0,0.00041095,7]